{"text_format":"1","workbook":"xlsx","n_sheets":2,"sheets":["Pasiūlymas","Subtiekėjai"],"not_rendered":{"charts":0,"images":0,"macros":1,"external_links":0,"defined_names":1,"comments":0,"pivot_tables":0},"unopened":[],"bounds":{"document_bytes":16777216,"sheet_cells":100000,"rows_first":2000,"rows_last":500,"rows_between":2000,"halvings":0,"cell_chars":16384,"cell_head_chars":4096},"cells_cut":0,"cells_raw":0,"read":"whole","date_system":"1900"}

{"sheet":"Pasiūlymas","index":0,"n_rows":83,"n_cols":13,"rows_kept":83,"cut":false,"hidden":false,"merged":[[18,0,18,1],[18,2,18,4],[19,0,19,1],[19,2,19,4],[22,0,22,5],[15,0,15,1],[15,2,15,4],[16,0,16,1],[16,2,16,4],[17,0,17,1],[17,2,17,4],[12,0,12,1],[12,2,12,4],[13,0,13,1],[13,2,13,4],[14,0,14,1],[14,2,14,4],[9,0,9,1],[9,2,9,4],[10,0,10,1],[10,2,10,4],[11,0,11,1],[11,2,11,4],[75,1,75,6],[28,1,28,6],[38,1,38,6],[48,1,48,6],[57,1,57,6],[66,1,66,6]]}
["Perkančioji organizacija, kuriai teikiamas pasiūlymas:",null,"VŠĮ Kauno klinikinė ligoninė"]
[]
[null,"PASIŪLYMAS"]
[null,"Marlės ir bintų pirkimas"]
[]
["Data:","2018-11-27"]
["Nr.:","18/11-27."]
["Vieta:","Panevėžys"]
[]
["Tiekėjo pavadinimas /Jeigu dalyvauja ūkio subjektų grupė, surašomi visi dalyvių pavadinimai/",null,"A.Zapalskio IĮ \"Azas\""]
["Įmonės kodas /Jeigu dalyvauja ūkio subjektų grupė, surašomi visi dalyvių kodai/",null,"147838431."]
["PVM mokėtojo kodas /Jeigu dalyvauja ūkio subjektų grupė, surašomi visi dalyvių kodai/",null,"LT478384314"]
["Banko pavadinimas, banko kodas, sąskaitos Nr.",null,"AB Swedbankas, 73000 a/s LT64730001000236840"]
["Tiekėjo adresas /Jeigu dalyvauja ūkio subjektų grupė, surašomi visi dalyvių adresai/",null,"Tiekimo g. 2A, 35289 Panevėžys"]
["Telefono numeris",null,"8 45 508288"]
["Fakso numeris",null,"8 45 571361"]
["El. pašto adresas",null,"info@azas.lt"]
["Asmens, pasirašiusio pasiūlymą saugiu elektroniniu parašu, vardas, pavardė, pareigos ",null,"Juozas Devižis, direktorius"]
["Asmens, įgalioto pasirašyti sutartį, vardas, pavardė, pareigos",null,"Juozas Devižis, direktorius"]
[]
[]
[]
["1. Šiuo pasiūlymu pažymime, kad sutinkame su visomis pirkimo sąlygomis, nustatytomis:\n1) pirkimo skelbime, paskelbtame Viešųjų pirkimų įstatymo nustatyta tvarka;\n2) pirkimo sąlygose ir kituose pirkimo dokumentuose (jų paaiškinimuose, papildymuose).\n"]
[]
["Siūlomas pirkimo objektas visiškai atitinka pirkimo sąlygose nustatytus reikalavimus ir jo kaina yra:"]
[]
[]
["Nr.","Pavadinimas","Kiekis","Mato vienetas","Kaina be PVM","Suma be PVM","Siūlomi prekių gamintojas ir pavadinimas",null,null,null,"","",""]
["1.","Marlė"]
["1.1.","Marlė medicininė rulonais",230000,"m",0.12,{"$f":"E30*230000","v":27600},"Zhende Medical",null,null,""]
["1.1.1.","Pagaminta iš 100% medvilnės, balinta"]
["1.1.2.","Plotis 90cm ± 5cm"]
["1.1.3.","Audimo tankumas 26x18 ± 1 . Siūlo storis 32,S",null,null,null,null,null,null,null,""]
["1.1.4.","Perkančioji organizacija prašo pateikti šios dalies pavyzdį",null,null,null,null,null,null,null,null,null,""]
[null,null,null,null,"Suma be PVM",{"$f":"F30","v":27600},null,null,null,null,null,""]
[null,null,null,null,"PVM suma",{"$f":"F37-F35","v":1380},null,null,null,"","",""]
[null,null,null,null,"Suma su PVM",{"$f":"F35*1.05","v":28980},null,null,null,"","",""]
[null,null,null,null,null,null,null,null,null,"","",""]
["2.","Marlė medicininė supakuota po 10m"]
["2.1.","Marlė medicininė supakuota po 10m",90000,"m",0.14000000000000001,{"$f":"E40*90000","v":12600.000000000002},"Shaoxing Gangfeng Hospital Products"]
["2.1.1.","Pagaminta iš 100% medvilnės, balinta",null,null,null,null,null,null,null,""]
["2.1.2.","Plotis 90cm ± 5cm"]
["2.1.3.","Audimo tankumas 26x18 ± 1 . Siūlo storis 32,S",null,null,null,null,null,null,null,null,null,""]
["2.1.4.","Perkančioji organizacija prašo pateikti šios dalies pavyzdį",null,null,null,null,null,null,null,"",null,""]
[null,null,null,null,"Suma be PVM",{"$f":"F40","v":12600.000000000002},null,null,null,null,null,""]
[null,null,null,null,"PVM suma",{"$f":"F47-F45","v":630}]
[null,null,null,null,"Suma su PVM",{"$f":"F45*1.05","v":13230.000000000002},null,null,null,"","",""]
[null,null,null,null,null,null,null,null,null,"","",""]
["3.","Tvarstis",null,null,null,null,null,null,null,"","",""]
["3.1.","Tvarstis nesterilus 7m± 30cm x 14cm± 1cm",190000,"vnt.",0.15,{"$f":"E50*190000","v":28500},"Shaoxing Gangfeng Hospital Products"]
["3.1.1.","Pagaminta iš 100% medvilnės, balintas"]
["3.1.2.","Audimo tankumas 26x18 ± 1 . Siūlo storis 32,S"]
["3.1.3.","Perkančioji organizacija prašo pateikti šios dalies pavyzdį"]
[null,null,null,null,"Suma be PVM",{"$f":"F50","v":28500}]
[null,null,null,null,"PVM suma",{"$f":"F56-F54","v":1425}]
[null,null,null,null,"Suma su PVM",{"$f":"F54*1.05","v":29925}]
[]
["4.","Tvarstis"]
["4.1.","Tvarstis nesterilus 5m± 30cm x 10cm± 1cm",50000,"vnt.",0.08,{"$f":"E59*50000","v":4000},"Shaoxing Gangfeng Hospital Products"]
["4.1.1.","Pagaminta iš 100% medvilnės, balintas"]
["4.1.2.","Audimo tankumas 26x18 ± 1 . Siūlo storis 32,S"]
["4.1.3.","Perkančioji organizacija prašo pateikti šios dalies pavyzdį"]
[null,null,null,null,"Suma be PVM",{"$f":"F59","v":4000}]
[null,null,null,null,"PVM suma",{"$f":"F65-F63","v":200}]
[null,null,null,null,"Suma su PVM",{"$f":"F63*1.05","v":4200}]
[]
["5.","Tvarstis"]
["5.1.","Tvarstis sterilus 5m± 30cm x 10cm± 1cm",500,"vnt.",0.1,{"$f":"E68*500","v":50},"Shaoxing Gangfeng Hospital Products"]
["5.1.1.","Pagaminta iš 100% medvilnės, balintas"]
["5.1.2.","Audimo tankumas 26x18 ± 1 . Siūlo storis 32,S"]
["5.1.3.","Perkančioji organizacija prašo pateikti šios dalies pavyzdį"]
[null,null,null,null,"Suma be PVM",{"$f":"F68","v":50}]
[null,null,null,null,"PVM suma",{"$f":"F74-F72","v":2.5}]
[null,null,null,null,"Suma su PVM",{"$f":"F72*1.05","v":52.5}]
[]
["6.","Tvarstis"]
["6.1.","Tvarstis sterilus 7m± 30cm x 14cm± 1cm",200,"vnt.",0.17,{"$f":"E77*200","v":34},"Shaoxing Gangfeng Hospital Products"]
["6.1.1.","Pagaminta iš 100% medvilnės, balintas"]
["6.1.2.","Audimo tankumas 26x18 ± 1 . Siūlo storis 32,S"]
["6.1.3.","Perkančioji organizacija prašo pateikti šios dalies pavyzdį"]
[null,null,null,null,"Suma be PVM",{"$f":"F77","v":34}]
[null,null,null,null,"PVM suma",{"$f":"F83-F81","v":1.7000000000000028}]
[null,null,null,null,"Suma su PVM",{"$f":"F81*1.05","v":35.700000000000003}]

{"sheet":"Subtiekėjai","index":1,"n_rows":100,"n_cols":9,"rows_kept":100,"cut":false,"hidden":false,"merged":[[38,0,38,9],[21,1,21,6],[21,7,21,9],[24,0,24,3],[24,4,24,9],[25,0,25,9],[26,0,26,9],[28,0,28,9],[32,0,32,3],[32,4,32,9],[35,0,35,3],[35,4,35,9],[18,1,18,6],[18,7,18,9],[19,1,19,6],[19,7,19,9],[20,1,20,6],[20,7,20,9],[17,1,17,6],[17,7,17,9],[7,0,7,1],[7,2,7,4],[7,5,7,7],[7,8,7,9],[8,0,8,1],[8,2,8,4],[8,5,8,7],[8,8,8,9],[10,0,10,9],[12,0,12,9],[14,0,14,9],[16,1,16,6],[16,7,16,9],[5,0,5,1],[5,2,5,4],[5,5,5,7],[5,8,5,9],[6,0,6,1],[6,2,6,4],[6,5,6,7],[6,8,6,9],[4,0,4,1],[4,2,4,4],[4,5,4,7],[4,8,4,9],[1,0,1,9],[3,0,3,1],[3,2,3,4],[3,5,3,7],[3,8,3,9]]}
[]
["Sutarties vykdymui numatome pasitelkti šiuos subtiekėjus / subteikėjus / subrangovus (įrašyti visus subtiekėjus / subteikėjus / subrangovus nepriklausomai nuo tiekiamų prekių/ teikiamų paslaugų/ atliekamų darbų vertės):"]
[]
["Subtiekėjo / subteikėjo / subrangovo (-ų) pavadinimas (-ai)",null,"Adresas",null,null,"Trumpas aprašymas",null,null,"Procentas nuo pasiūlymo kainos be PVM"]
[]
[]
[]
[]
[]
[]
["Jeigu pirkimo dokumentų 18 punkte numatytas subtiekimo / subteikimo / subrangos apribojimas:\nMes patvirtiname, kad subtiekėjams / subteikėjams / subrangovams (tiekėjams, kuriuos pasamdysime dalies sutartyje numatytų prekių tiekimui /paslaugų teikimui / darbų atlikimui) perduodamų tiekti prekių / teikti paslaugų/ atlikti darbų dalis neviršys       proc. pasiūlymo kainos be PVM."]
[]
["Mes patvirtiname, kad esame / nesame (nereikalingą išbraukti) laikomi asocijuotais (susijusiais) su Perkančiąja organizacija pagal Lietuvos Respublikoje galiojančių teisės aktų (Lietuvos Respublikos pelno mokesčio, Lietuvos Respublikos pridėtinės vertės mokesčio ir Lietuvos Respublikos gyventojų pajamų mokesčio įstatymų) nuostatas. "]
[]
["Kartu su pasiūlymu pateikiami šie dokumentai:"]
[]
["Eil.Nr.","\"Pateiktų skaitmeninių dokumentų (ar jų kopijų) pavadinimas\n(pasiūlymą sudarančių konfidencialių dokumentų pavadinimai pažymėti prierašu KONFIDENCIALU)\"",null,null,null,null,null,"Prisegtos bylos (failo) pavadinimas "]
["1.","Europos bendrasis viešųjų pirkimų dokumentas (EBVPD)",null,null,null,null,null,"end_response_Azas"]
["2.","Įgaliojimai, Sertifikatai, Katalogai, Aprašymai",null,null,null,null,null,"Sert. Apr. "]
[]
[]
[]
[]
[]
["Pasiūlymo galiojimo užtikrinimui pateikiame :"]
[]
["(Nurodyti užtikrinimo būdą, dydį, dokumentus)"]
[]
["\nPasiūlymas galioja iki termino, nustatyto pirkimo dokumentuose.\n\nPasiūlymo neatskiriama dalis yra (rašoma, jeigu buvo reikalauta prie pasiūlymo pridėti atitinkamą dokumentą)"]
[]
[]
[]
["Tiekėjo arba jo įgalioto asmens pareigų pavadinimas",null,null,null,"Direktorius"]
[]
[]
["Pasirašančio asmens vardas ir pavardė",null,null,null,"Juozas Devižis"]
[]
[]
["**kadangi visas pasiūlymas pasirašomas saugiu elektroniniu parašu, šio dokumento atskirai pasirašyti neprivaloma."]
[]
[]
[]
[]
[]
[]
[]
[]
[]
[]
[]
[]
[]
[]
[]
[]
[]
[]
[]
[]
[]
[]
[]
[]
[]
[]
[]
[]
[]
[]
[]
[]
[]
[]
[]
[]
[]
[]
[]
[]
[]
[]
[]
[]
[]
[]
[]
[]
[]
[]
[]
[]
[]
[]
[]
[]
[]
[]
[]
[]
["2403 2018-09-25 13:53:28"]